{"text_format":"1","workbook":"xlsx","n_sheets":2,"sheets":["2.aperturaMusei-GEP","POLI MUSEALI ED ALTRI ISTITUTI"],"not_rendered":{"charts":0,"images":0,"macros":0,"external_links":0,"defined_names":2,"comments":0,"pivot_tables":0},"unopened":[],"bounds":{"document_bytes":16777216,"sheet_cells":100000,"rows_first":2000,"rows_last":500,"rows_between":2000,"halvings":0,"cell_chars":16384,"cell_head_chars":4096},"cells_cut":0,"cells_raw":0,"read":"whole","date_system":"1900"}

{"sheet":"2.aperturaMusei-GEP","index":0,"n_rows":87,"n_cols":17,"rows_kept":87,"cut":false,"hidden":false,"merged":[[1,0,1,15]]}
[]
["APERTURA DI TUTTI I MUSEI DALLE 20 ALLE 24 PER UNA NOTTE COINCIDENTE CON LE GIORNATE EUROPEE DEL PATRIMONIO 2014"]
[]
["NUMERO","Sito","RISPOSTO","EMAIL","REGIONE","N. partecipanti Area III","Costo unitario lordo dipendente Area III comprensivo degli oneri dell'Amm.ne","Totale Costo complessivo lordo dipendenti Area III comprensivo degli oneri dell'Amm.ne","N. partecipanti Area I e II","Costo unitario lordo dipendente Area I e II comprensivo degli oneri dell'Amm.ne","Totale Costo complessivo lordo dipendenti Area I e II comprensivo degli oneri dell'Amm.ne","Area I II e III  Costo totale unitario complessivo per singola giornata di apertura","N. aperture","Costo complessivo per turno  di 4 ore","ORARIO","NOTE"]
[1,"Soprintendenza BSAE dell'Abruzzo L'AQUILA",null,"sbsae-abr@beniculturali.it","ABRUZZO",5,132.69999999999999,{"$f":"F5*G5","v":663.5},19,106.16,{"$f":"I5*J5","v":2017.04},{"$f":"H5+K5","v":2680.54},1,{"$f":"L5*M5","v":2680.54},"ore 20-24","Museo di Arte Sacra, Abbazia S.Spirito, Abbazia di S. Clemente, Museo D'Annunzio, Taverna Ducali"]
[2,"Soprintendenza per i beni archeologici dell'Abruzzo CHIETI",null,null,"ABRUZZO",null,132.69999999999999,0,null,106.16,0,0,1,0,null,"Non partecipano"]
[3,"Soprintendenza BSAE della Basilicata MATERA",null,"sbsae-bas@beniculturali.it","BASILICATA",2,132.69999999999999,265.39999999999998,11,106.16,1167.76,1433.1599999999999,1,1433.1599999999999,"ore 20-24","Museo d'Arte Medievale e Moderna della Basilicata"]
[4,"Soprintendenza per i beni archeologici della Basilicata POTENZA",null,"sba-bas@beniculturali.it","BASILICATA",11,132.69999999999999,1459.6999999999998,27,106.16,2866.3199999999997,4326.0199999999995,1,4326.0199999999995,"ore 20-24","Museo Archeologico Dinu Adamesteanu Potenza,Museo di Grumento,Museo di Muro Lucano,Museo di Melfi,Museo di Venosa,Palazzo di Lieto Maratea,Museo Ridola Matera,Palazzo Ducale di Tricarico,Museo di Metaponto,Museo di Policoro,Convento S'Antonio di Rivello"]
[5,"Soprintendenza BSAE della Calabria COSENZA",null,null,"CALABRIA",4,132.69999999999999,530.79999999999995,8,106.16,849.28,1380.08,1,1380.08]
[6,"Soprintendenza per i beni archeologici della Calabria R.CALABRIA",null,"sba-cal@beniculturali.it","CALABRIA",8,132.69999999999999,1061.5999999999999,43,106.16,4564.88,5626.48,1,5626.48,null,"Museo Arch. di RC, Locri, Sibari, Vibo Valentia, Crotone"]
[7,"Soprintendenza BSAE per le prov. di SALERNO e AVELLINO",null,"sbsae-sa@beniculturali.it","CAMPANIA",2,132.69999999999999,265.39999999999998,15,106.16,1592.3999999999999,1857.7999999999997,1,1857.7999999999997,"ore 20-24","Museo Diocesano SA, Dogana dei Grani di Atripalda (AV)"]
[8,"Soprintendenza BAP per le prov. di SALERNO e AVELLINO ",null,"sbap-sa@beniculturali.it","CAMPANIA",10,132.69999999999999,1327,46,106.16,4883.3599999999997,6210.36,1,6210.36,null,"Certosa di S.Lorenzo, Carcere Borbonico di AV, museo virtuale della Scuola medica salernitana, complesso mon. Di S.Pietro a Corte in SA"]
[9,"Soprintendenza BAPSAE per le prov. di CASERTA e BENEVENTO",null,null,"CAMPANIA",null,132.69999999999999,0,null,106.16,0,0,1,0]
[10,"Soprintendenza BAPSAE Napoli e provincia  NAPOLI",null,"sbapsae-na@beniculturali.it","CAMPANIA",1,132.69999999999999,132.69999999999999,30,106.16,3184.7999999999997,3317.4999999999995,1,3317.4999999999995,null,"Palazzo Reale di Napoli"]
[11,"Soprintendenza per i beni archeologici di NAPOLI","Sì",null,"CAMPANIA",13,132.69999999999999,1725.1,78,106.16,8280.48,10005.58,1,10005.58,"Museo Archeo 20-24\nMuseo Nola 20-24","Museo Naz.le Archeo e Museo Nola"]
[12,"Soprintendenza per i beni archeologici per le prov. SA, AV, BN e CE SALERNO","Sì",null,"CAMPANIA",25,132.69999999999999,3317.4999999999995,231,106.16,24522.959999999999,27840.46,1,27840.46]
[13,"Soprintendenza BAP PARMA e PIACENZA",null,"sbap-pr@beniculturali.it","EMILIA - ROMAGNA",2,132.69999999999999,265.39999999999998,6,106.16,636.96,902.36,1,902.36,"ore 20-24","Castello di Torrechiara"]
[14,"Soprintendenza BSAE per le prov. di BO, FE, FC, RA e RN  BOLOGNA",null,"sbsae-bo@beniculturali.it","EMILIA - ROMAGNA",5,132.69999999999999,663.5,37,106.16,3927.92,4591.42,1,4591.42,"ore 20-24","Pinacoteca di BO, Palazzo Pepoli, Penacoteca Ferrara, Palazzo Milzetti"]
[15,"Soprintendenza BSAE per le prov. di PARMA e PIACENZA",null,"sbsae-pr@beniculturali.it","EMILIA - ROMAGNA",3,132.69999999999999,398.09999999999997,18,106.16,1910.8799999999999,2308.98,1,2308.98,null,"Galleria Nazionale, Teatro Farnese, Camera di S.Paolo, Antica Spezieria di S. Giovanni"]
[16,"Soprintendenza BAP per le prov. di  RA, FE, FC e RN    RAVENNA ","si",null,"EMILIA - ROMAGNA",5,132.69999999999999,663.5,34,106.16,3609.44,4272.9400000000005,1,4272.9400000000005,null,"Museo Naz.le Ravenna, Museo Pomposiano e complesso Abaziale di Pomposa, Museo di Casa Romei"]
[17,"Soprintendenza BSAE per le prov. di MODENA e REGGIO EMILIA",null,null,"EMILIA - ROMAGNA",null,132.69999999999999,0,null,106.16,0,0,1,0,null,"Solo Giornata Nazionale per il Restauro"]
[18,"Soprintendenza per i beni archeologici dell'Emilia Romagna BOLOGNA",null,"sba-ero.personale@beniculturali.it","EMILIA - ROMAGNA",11,132.69999999999999,1459.6999999999998,31,106.16,3290.96,4750.66,1,4750.66,null,"Museo Archeologico Ferrara\nMuseo N.le Etrusco di Marzabotto\nMuseo Archeologico Parma\nMuseoa Arch. N.le di Sarsina"]
[19,"Soprintendenza BSAE per il Friuli Venezia Giulia TRIESTE",null,"sbsae-fvg@beniculturali.it","FRIULI VENEZIA GIULIA",1,132.69999999999999,132.69999999999999,13,106.16,1380.08,1512.78,1,1512.78,"fino alle 23.30","Museo Storico del Castello di Miramare"]
[20,"Soprintendenza per i beni archeologici del Friuli Venezia Giulia TRIESTE",null,"sba-fvg@beniculturali.it","FRIULI VENEZIA GIULIA",4,132.69999999999999,530.79999999999995,23,106.16,2441.6799999999998,2972.4799999999996,1,2972.4799999999996,null,"MAN Aquileia, MAN Cividale"]
[21,"Opificio delle Pietre Dure",null,"opd@beniculturali.it","TOSCANA",1,132.69999999999999,{"$f":"F25*G25","v":132.69999999999999},9,106.16,{"$f":"I25*J25","v":955.43999999999994},{"$f":"H25+K25","v":1088.1399999999999},1,{"$f":"L25*M25","v":1088.1399999999999},"ore 20-24"]
[22,"Istituto centrale per la demoetnoantropologia ROMA",null,"ic-d@beniculturali.it","LAZIO",2,132.69999999999999,265.39999999999998,9,106.16,955.43999999999994,1220.8399999999999,1,1220.8399999999999,"ore 20-24"]
[23,"Soprintendenza BAP per il Comune di ROMA",null,null,"LAZIO",null,132.69999999999999,0,null,106.16,0,0,1,0,null,"Partecipano solo all'apertura San Michele"]
[24,"Soprintendenza BAP per le prov. di RM, FR, LT, RI, VT   ROMA",null,"sbap-laz@beniculturali.it","LAZIO",5,132.69999999999999,663.5,50,106.16,5308,5971.5,1,5971.5,null,"Villa d'Este, Pal.Farnese,Pal.Altieri, Villa Lante, Villa Odescalchi"]
[25,"Soprintendenza alla Galleria nazionale d'arte moderna e contemporanea ROMA",null,"s-gnam@beniculturali.it","LAZIO",1,132.69999999999999,132.69999999999999,20,106.16,2123.1999999999998,2255.8999999999996,1,2255.8999999999996]
[26,"Istituto nazionale per la grafica  ROMA",null,"in-g@beniculturali.it","LAZIO",2,132.69999999999999,265.39999999999998,9,106.16,955.43999999999994,1220.8399999999999,1,1220.8399999999999,"Palazzo Poli ore 20,00-24,00","2 visite guidate alla mostra di P.Nini Santoro e un concerto jazz "]
[27,"Museo nazionale d'arte orientale ROMA",null,"mn-ao@beniculturali.it","LAZIO",1,132.69999999999999,132.69999999999999,3,106.16,318.48,451.18,1,451.18]
[28,"Soprintendenza per i beni archeologici del Lazio ROMA",null,"sba-laz@beniculturali.it","LAZIO",8,132.69999999999999,1061.5999999999999,68,106.16,7218.88,8280.48,1,8280.48,null,"Cassino, Formia, Minturno, Nemi, Palestrina, Sperlonga, Villa Adriana, Villa di Orazio Licenza"]
[29,"Soprintendenza speciale per i beni archeologici di ROMA  ",null,"ssba-rm@beniculturali.it","LAZIO",2,132.69999999999999,265.39999999999998,40,106.16,4246.3999999999996,4511.7999999999993,1,4511.7999999999993,"Colosseo e Museo Nazionale Romano sede delle Terme di Diocleziano","Colosseo e Museo Nazionale Romano  sede delle Terme di Diocleziano"]
[30,"Soprintendenza al Museo nazionale preist. ed etnogr. L. Pigorini ROMA",null,"s-mnpe@beniculturali.it","LAZIO",2,132.69999999999999,265.39999999999998,11,106.16,1167.76,1433.1599999999999,1,1433.1599999999999]
[31,"Soprintendenza per i beni archeologici dell'Etruria meridionale ROMA",null,"sba-em@beniculturali.it","LAZIO",7,132.69999999999999,928.89999999999986,134,106.16,14225.439999999999,15154.339999999998,1,15154.339999999998]
[32,"Soprintendenza per i BAP della Liguria GENOVA",null,"sbap-lig@beniculturali.it","LIGURIA",1,132.69999999999999,{"$f":"F36*G36","v":132.69999999999999},22,106.16,{"$f":"I36*J36","v":2335.52},{"$f":"H36+K36","v":2468.2199999999998},1,{"$f":"L36*M36","v":2468.2199999999998},null,"Museo Palazzo Reale"]
[33,"Soprintendenza BSAE della Liguria GENOVA",null,"sbsae-lig@beniculturali.it","LIGURIA",1,132.69999999999999,132.69999999999999,9,106.16,955.43999999999994,1088.1399999999999,1,1088.1399999999999]
[34,"Soprintendenza per i beni archeologici della Liguria GENOVA",null,"sba-lig@beniculturali.it","LIGURIA",0,132.69999999999999,0,11,106.16,1167.76,1167.76,1,1167.76,"ore 20-24","Museo Preistorico dei Balzi Rossi e Museo Archeo di Chiavari"]
[35,"Soprintendenza BAP per le prov. di BS, CR e MN BRESCIA",null,null,"LOMBARDIA",null,132.69999999999999,0,null,106.16,0,0,1,0,null,"Partecipano solo all'apertura serale de venerdì sera"]
[36,"Soprintendenza BAP prov. NO, AL, Verb. Cusio Ossola - NOVARA",null,"sbap-no@beniculturali.it","PIEMONTE",1,132.69999999999999,132.69999999999999,3,106.16,318.48,451.18,1,451.18,null,"Forte Gavi"]
[37,"Soprintendenza BSAE per le prov. di MN, BS e CR   MANTOVA",null,"sbsae-mn@beniculturali.it","LOMBARDIA",1,132.69999999999999,132.69999999999999,25,106.16,2654,2786.7,1,2786.7,"ore 20-24","Museo di Palazzo Ducale"]
[38,"Soprintendenza BSAE per le prov. di MI, BG, CO, LC, LO, MZ, PV, SO, VA   MILANO   ",null,"sbsae-mi@beniculturali.it","LOMBARDIA",3,132.69999999999999,398.09999999999997,40,106.16,4246.3999999999996,4644.5,1,4644.5]
[39,"Soprintendenza per i beni archeologici della Lombardia   MILANO",null,"sba-lom@beniculturali.it","LOMBARDIA",6,132.69999999999999,796.19999999999993,27,106.16,2866.3199999999997,3662.5199999999995,1,3662.5199999999995]
[40,"Soprintendenza BAP delle Marche ANCONA",null,"sbap-mar@beniculturali.it","MARCHE",1,132.69999999999999,132.69999999999999,5,106.16,530.79999999999995,663.5,1,663.5,"ore 20-14","Rocca roveresca Senigallia"]
[41,"Soprintendenza BSAE delle Marche URBINO",null,"sbsae-mar@beniculturali.it","MARCHE",2,132.69999999999999,265.39999999999998,36,106.16,3821.7599999999998,4087.16,1,4087.16,null,"Palazzo Ducale di Urbino-Galleria Nazionale delle Marche e Rocca Demaniale di Gradara"]
[42,"Soprintendenza per i beni archeologici delle Marche ANCONA",null,"sba-mar@beniculturali.it","MARCHE",4,132.69999999999999,530.79999999999995,31,106.16,3290.96,3821.76,1,3821.76,null,"MA delle MArcheAncona, MA Statale di Ascoli, Antiquarium di Numana, MA di Arcevia, MA di Urbisaglia, MA di Cingoli"]
[43,"Direzione Regionale per i Beni Culturali e paesaggistici del Molise",null,"dr-mol@beniculturali.it","MOLISE",9,132.69999999999999,{"$f":"F47*G47","v":1194.3},6,106.16,{"$f":"I47*J47","v":636.96},{"$f":"H47+K47","v":1831.26},1,{"$f":"L47*M47","v":1831.26},"ore 20-24","Apertura Palazzo Iapoce"]
[44,"Soprintendenza BSAE del Molise  CAMPOBASSO",null,"sbsae-mol@beniculturali.it","MOLISE",15,132.69999999999999,1990.4999999999998,5,106.16,530.79999999999995,2521.2999999999997,1,2521.2999999999997,null,"Castello di Gambatesa, Palazzo Pistilli di CB, Castello Pandone di Venafro e Museo Naz.le del Molise"]
[45,"Soprintendenza BAP del Molise  CAMPOBASSO",null,null,"MOLISE",null,132.69999999999999,0,null,106.16,0,0,1,0]
[46,"Soprintendenza per i beni archeologici del Molise CAMPOBASSO",null,"sba-mol@beniculturali.it","MOLISE",18,132.69999999999999,2388.6,20,106.16,2123.1999999999998,4511.7999999999993,1,4511.7999999999993,"ore 20-24",null,"X"]
[47,"Soprintendenza BSAE del Piemonte TORINO",null,"sbsae-pie@beniculturali.it","PIEMONTE",3,132.69999999999999,398.09999999999997,17,106.16,1804.72,2202.8200000000002,1,2202.8200000000002,null,"Armeria Reale, Villa della Regina, Palazzo Carignano"]
[48,"Soprintendenza BAP  TO, CN, AT, VC, BI     TORINO",null,"sbap-to@beniculturali.it","PIEMONTE",5,132.69999999999999,663.5,36,106.16,3821.7599999999998,4485.26,1,4485.26,"ore 20-24","Palazzo Reale, Castello di Agliè, Castello di Rocconigi, Palazzo Chiablese "]
[49,"Soprintendenza per i beni archeologici del Piemonte e del Museo Antichità EgizieTORINO",null,"sba-pie@beniculturali.it","PIEMONTE",2,132.69999999999999,265.39999999999998,10,106.16,1061.5999999999999,1327,1,1327,"ore 20-24","Museo di Antichità"]
[50,"Soprintendenza BSAE della Puglia BARI",null,"sbsae-pug@beniculturali.it","PUGLIA",1,132.69999999999999,132.69999999999999,7,106.16,743.12,875.81999999999994,1,875.81999999999994,"ore 20-24","Galleria Nazionale della Puglia di Palazzo Sylos Calo' a Bitonto"]
[51,"Soprintendenza BAP per le prov. di BA, Barletta-Andria, Trani e FG    BARI",null,"sbap-ba@beniculturali.it","PUGLIA",3,132.69999999999999,398.09999999999997,25,106.16,2654,3052.1,1,3052.1,"ore 20-24","Castello Svevo di BA, Castello Svevo di Trani, Castel del Monte"]
[52,"Soprintendenza BAP per le prov. di LE, BR e TA    LECCE ",null,"sbap-le@beniculturali.it","PUGLIA",1,132.69999999999999,132.69999999999999,5,106.16,530.79999999999995,663.5,1,663.5,null,"Castello di Copertino"]
[53,"Soprintendenza per i beni archeologici della Puglia TARANTO",null,"sba-pug@beniculturali.it","PUGLIA",11,132.69999999999999,1459.6999999999998,57,106.16,6051.12,7510.82,1,7510.82]
[54,"Soprintendenza BAP per le prov. di RC e VV   REGGIO CALABRIA",null,null,"REGGIO CALABRIA",null,132.69999999999999,0,null,106.16,0,0,1,0,null,"Non aderisce"]
[55,"Soprintendenza BAPSAE per le prov. di CAGLIARI e ORISTANO",null,null,"SARDEGNA",null,132.69999999999999,0,null,106.16,0,0,1,0]
[56,"Soprintendenza BAPSAE per le prov. di SASSARI e NUORO",null,"sbapsae-ss@beniculturali.it","SARDEGNA",27,132.69999999999999,3582.8999999999996,44,106.16,4671.04,8253.9399999999987,1,8253.9399999999987,null,"Pinacoteca Mus'A al Canopoleno, Sistema museale di Caprera"]
[57,"Soprintendenza per i beni archeologici per le prov. CAGLIARI e ORISTANO",null,"sba-ca@beniculturali.it","SARDEGNA",2,132.69999999999999,265.39999999999998,13,106.16,1380.08,1645.48,1,1645.48,null,"Museo Archeologico Nazionale di Cagliari"]
[58,"Soprintendenza per i beni archeologici per le prov. SASSARI e NUORO",null,"sba-ss@beniculturali.it","SARDEGNA",6,132.69999999999999,796.19999999999993,51,106.16,5414.16,6210.36,1,6210.36,"ore 20-24","Museo Sanna, Antiquarium, Museo Asproni"]
[59,"Soprintendenza BSAE per le prov. di SIENA e GROSSETO",null,"sbsae-si@beniculturali.it","TOSCANA",1,132.69999999999999,132.69999999999999,11,106.16,1167.76,1300.46,1,1300.46,null,"Pinacoteca Nazionale di Siena"]
[60,"Soprintendenza BAPSAE AREZZO",null,"sbapsae-ar@beniculturali.it","TOSCANA",3,132.69999999999999,398.09999999999997,13,106.16,1380.08,1778.1799999999998,1,1778.1799999999998,"ore 20-24","Chiesa di S. Francesco, Museo Nazionale di Arezzo, Museo Statale di Pal.Taglieschi"]
[61,"Soprintendenza speciale per il patrimonio SAE e per il polo museale della città di Firenze FIRENZE",null,"sspsae-fi@beniculturali.it","TOSCANA",6,132.69999999999999,796.19999999999993,95,106.16,10085.199999999999,10881.4,1,10881.4]
[62,"Soprintendenza BAPSAE per le prov. di PISA e LIVORNO",null,"sbapsae-pi@beniculturali.it","TOSCANA",10,132.69999999999999,1327,40,106.16,4246.3999999999996,5573.4,1,5573.4,null,"Villa S.Martino, Palazzina dei Mulini, Museo Naz.le S. Matteo, Museo Naz. Pal. Reale Pisa, Certosa Monumentale di Calci"]
[63,"Soprintendenza BAPSAE per le prov. FI (esclusa Firenze) PT e PO   FIRENZE",null,"sbapsae-fi@beniculturali.it","TOSCANA",3,132.69999999999999,398.09999999999997,12,106.16,1273.92,1672.02,1,1672.02,null,"Museo Naz.le Casa Giusti, Pistoia Complesso Monumentale, Firenze Complesso Monumetale \"Le Pagliere\""]
[64,"Soprintendenza BAP per le prov. di SIENA e GROSSETO",null,"sbap-si@beniculturali.it","TOSCANA",1,132.69999999999999,132.69999999999999,5,106.16,530.79999999999995,663.5,1,663.5]
[65,"Soprintendenza BAPSAE per le prov. LUCCA e MASSA CARRARA",null,"sbapsae-lu@beniculturali.it","TOSCANA",2,132.69999999999999,{"$f":"F69*G69","v":265.39999999999998},13,106.16,{"$f":"I69*J69","v":1380.08},{"$f":"H69+K69","v":1645.48},1,{"$f":"L69*M69","v":1645.48},null,"Palazzo Mansi, Villa Guinigi"]
[66,"Soprintendenza per i beni archeologici della Toscana FIRENZE",null,"sba-tos@beniculturali.it","TOSCANA",11,132.69999999999999,1459.6999999999998,56,106.16,5944.96,7404.66,1,7404.66,null,"Museo Arch. di Fi, di Arezzo, di Chiusi, Area arch. di Montefortini e di Roselle  "]
[67,"Soprintendenza BSAE dell'Umbria PERUGIA",null,"sbsae-umb@beniculturali.it","UMBRIA",3,132.69999999999999,398.09999999999997,14,106.16,1486.24,1884.34,1,1884.34,null,"Galleria Naz.le Umbria in PG e castello Bufalini a S.Giustino"]
[68,"Soprintendenza BAP dell'Umbria PERUGIA",null,"sbap-umb@beniculturali.it","UMBRIA",3,132.69999999999999,398.09999999999997,14,106.16,1486.24,1884.34,1,1884.34,null,"Museo Nazionale del Ducato di Spoleto, Tempietto sul Clitunno, Pal. Ducale di Gubbio"]
[69,"Soprintendenza per i beni archeologici dell'Umbria PERUGIA",null,"sba-umb@beniculturali.it","UMBRIA",6,132.69999999999999,796.19999999999993,32,106.16,3397.12,4193.32,1,4193.32]
[70,"Soprintendenza BSAE prov. di VR, RO, VI   VERONA",null,null,"VENETO",null,132.69999999999999,0,null,106.16,0,0,1,0,null,"Non dipendono musei"]
[71,"Soprintendenza BAP per le prov. di VE, BL, PD e TV   VENEZIA",null,"sbap-vebpt@beniculturali.it","VENETO",1,132.69999999999999,132.69999999999999,5,106.16,530.79999999999995,663.5,1,663.5,"ore 20-24","Villa Pisani a Stra"]
[72,"Soprintendenza speciale patrimonio storico,artistico ed etnoantropologico e per il polo museale di VE e dei comuni della Gronda lagunare",null,"sspsae-ve@beniculturali.it","VENETO",3,132.69999999999999,398.09999999999997,24,106.16,2547.84,2945.94,1,2945.94,null,"Gallerie dell'Accademia, Ca' D'Oro, Museo di Palazzo Grimani"]
[73,"Soprintendenza per i beni archeologici del Veneto PADOVA",null,"sba-ven@beniculturali.it","VENETO",5,132.69999999999999,663.5,17,106.16,1804.72,2468.2200000000003,1,2468.2200000000003]
[74,"Soprintendenza speciale per i beni archeologici di Pompei, Ercolano e Stabia","si",null,"CAMPANIA",6,132.69999999999999,796.19999999999993,40,106.16,4246.3999999999996,5042.5999999999995,1,5042.5999999999995,"Museo Archeo 20-24\nMuseo Nola 20-24","Pompei, Oplonti, Boscoreale"]
[75,"Soprintendenza speciale per IL Patrimonio Storico Artistico ed etno per il polo museale della città di Roma ",null,null,"LAZIO",null,132.69999999999999,0,null,106.16,0,0,1,0,null,"sì - In attesa di consocere ile unità Galleria Borghese, Castel Sant'Angelo, Galleria Spada, Museo Nazionale degli Strumenti Musicali"]
[76,"Istituto Superiore per la Conservazione e il Restauro - ROMA",null,null,"LAZIO",0,132.69999999999999,{"$f":"F80*G80","v":0},0,106.16,{"$f":"I80*J80","v":0},{"$f":"H80+K80","v":0},1,{"$f":"L80*M80","v":0},null,"Apertura straordinaria del Complesso S.Michele"]
[77,"Soprintendenza Speciale per il PSAE e per il polo Museale della Città di Napoli e della Reggia di Caserta",null,"sspsae-nap@beniculturali.it","CAMPANIA",10,132.69999999999999,{"$f":"F81*G81","v":1327},229,106.16,{"$f":"I81*J81","v":24310.639999999999},{"$f":"H81+K81","v":25637.64},1,{"$f":"L81*M81","v":25637.64},null,"solo complesso vanvitelliano (1 area III e 64 Area II))"]
[78,"Soprintendenza BAP  di Milano",null,"sbsae-mn@beniculturali.it","LOMBARDIA",3,132.69999999999999,{"$f":"F82*G82","v":398.09999999999997},10,106.16,{"$f":"I82*J82","v":1061.5999999999999},{"$f":"H82+K82","v":1459.6999999999998},1,{"$f":"L82*M82","v":1459.6999999999998},"ore 20-24","Cenacolo vinciano e Palazzo Besta in Teglio (SO)"]
[79,"Biblioteca Reale Torino",null,"b-real@beniculturali.it","PIEMONTE",1,132.69999999999999,{"$f":"F83*G83","v":132.69999999999999},4,106.16,{"$f":"I83*J83","v":424.64},{"$f":"H83+K83","v":557.33999999999992},1,{"$f":"L83*M83","v":557.33999999999992},null,"Apertura straordinaria del Complesso Monumentale"]
[null,null,null,null,null,null,null,null,null,null,"Totale singola apertura",{"$f":"SUM(L5:L83)","v":275166.72000000003},"Totale complessivo",{"$f":"SUM(N5:N83)","v":275166.72000000003}]
[]
["N.B : COSTO UNITARIO DEL PERSONALE AL NETTO DEGLI ONERI DELL'AMM.NE: Area 3 € 100"]
["N.B : COSTO UNITARIO DEL PERSONALE AL NETTO DEGLI ONERI DELL'AMM.NE: Area 1 e 2  € 80"]

{"sheet":"POLI MUSEALI ED ALTRI ISTITUTI","index":1,"n_rows":138,"n_cols":3,"rows_kept":138,"cut":false,"hidden":false,"merged":[[0,0,0,2],[129,0,129,2],[130,1,130,2],[1,0,1,2],[2,0,2,2]]}
["EVENTI DIURNI GIORNATE EUROPEE DEL PATRIMONIO 2017 (23-24 settembre 2017)"]
["Musei e Soprintendenze - Turno di 4 ore "]
["Compenso previsto: euro 100 (a lordo dipendente) Area III; euro 80 (a lordo dipendente) Area I e II "]
["NOME ISTITUTO","TOTALE LORDO DIPENDENTE","TOTALE AL LORDO ONERI AMMINISTRAZIONE"]
["ABRUZZO"]
["SOPRINT. ARCHEOLOGIA BELLE ARTI E PAESAGGIO PER LA CITTA' DELL'AQUILA  E I COMUNI DEL CRATERE",{"$f":"C6/1.327","v":2260.7385079125847},3000]
["SOPRINT. ARCHEOLOGIA BELLE  ARTI E PAESAGG. DELL'ABRUZZO CON L'ESCLUSIONE DELLA CITTA' DELL'AQUILA  (AQ)",{"$f":"C7/1.327","v":3014.3180105501133},4000]
["POLO MUSEALE DELL'ABRUZZO   (CH)",6782.2155237377547,9000]
[]
["BASILICATA"]
["SOPRINT.  ARCHEOLOGIA  BELLE ARTI E PAESAG. DELLA BASILICATA (PZ)",2260.7385079125847,3000]
["POLO MUSEALE DELLA BASILICATA (MT)",8666.1642803315754,11500]
[]
["CALABRIA"]
["SOPRINTENDENZA ARCHEOLOGIA, BELLE ARTI E PAESAGGIO PER LE PROVINCE DI CATANZARO, COSENZA, CROTONE",2260.7385079125847,3000]
["SOPRINTENDENZA ARCHEOLOGIA, BELLE ARTI E PAESAGGIO PER LA CITTà METROPOLITANA DI REGGIO CALABRIA E LA PROVINCIA DI VIBO VALENTIA",2260.7385079125847,3000]
["POLO MUSEALE DELLA CALABRIA   (CS)",9796.533534287868,13000]
["MUSEO ARCHEOLOGICO NAZ/LE DI REGGIO CALABRIA  (RC)",5275.0565184626976,7000]
[]
[]
["CAMPANIA"]
["SOPRINT. SPECIALE PER POMPEI ,ERCOLANO E STABIA  (POMPEI)",18839.487565938209,25000]
["SOPRINTENDENZA  ARCHEOLOGIA BELLE ARTI E PAESAGGIO PER IL COMUNE DI NAPOLI",3014.3180105501133,4000]
["SOPRINT. ARCHEOLOGIA BELLE ARTI E PAESAGGIO PER L'AREA METROPOLITANA DI NAPOLI   (NA)",3014.3180105501133,4000]
["SOPRINT. ARCHEOLOGIA BELLE ARTI E PAESAGGIO PER LE PROVINCE DI CASERTA E BENEVENTO  (CE)",4521.4770158251695,6000]
["SOPRINT.ARCHEOLOGIA BELLE ARTI E PAESAGGIO PER LE PROVINCE DI SALERNO E AVELLINO  (SA)",6028.6360211002266,8000]
["POLO MUSEALE DELLA CAMPANIA    (NA)",12057.272042200453,16000]
["MUSEO CAPODIMONTE    (NA)",10550.113036925395,14000]
["REGGIA DI CASERTA    (CE)",10550.113036925395,14000]
["MUSEO ARCHEOLOGICO NAZIONALE DI NAPOLI (NA)",9042.9540316503389,12000]
["PARCO ARCHEOLOGICO DEI CAMPI FLEGREI",4521.4770158251695,6000]
["PARCO ARCHEOLOGICO DI ERCOLANO ",3767.8975131876414,5000]
["PARCO ARCHEOLOGICO DI PAESTUM        (SA)",4521.4770158251695,6000]
[]
["EMILIA ROMAGNA"]
["SOPRINT. ARCHEOLOGIA BELLE ARTI E PAESAGGIO  PER LA CITTà METROPOLITANA DI BOLOGNA E LE PROVINCE DI MODENA; REGGIO-EMILIA E FERRARA (BO)",2260.7385079125847,3000]
["SOPRINT. ARCHEOLOGIA BELLE ARTI E PAESAGGIO PER  LE PROVINCE DI RAVENNA, FORLI'-CESENA E RIMINI (RA)",2260.7385079125847,3000]
["SOPRINT. ARCHEOLOGIA BELLE ARTI E PAESAGGIO PER LE PROVINCE DI PARMA E PIACENZA (PR)",1507.1590052750566,2000]
["POLO MUSEALE DELL'EMILIA E ROMAGNA  (BO)",9796.533534287868,13000]
["COMPLESSO MONUMENTALE DELLA PILOTTA - PARMA",6028.6360211002266,8000]
["GALLERIA ESTENSE DI MODENA  (MO)",6028.6360211002266,8000]
[]
["FRIULI VENEZIA GIULIA"]
["SOPRINTENDENZA ARCHEOLOGIA BELLE ARTI E PAESAGGIO  DEL FRIULI VENEZIA GIULIA  (TS)",3014.3180105501133,4000]
["MUSEO STORICO E PARCO DEL CASTELLO DI MIRAMARE",3767.8975131876414,5000]
["POLO MUSEALE DEL FRIULI VENEZIA GIULIA   (TS)",{"$f":"C46/1.327","v":6782.2155237377547},9000]
[]
["LAZIO"]
["PARCO ARCHEOLOGIOCO DEL COLOSSEO",15071.590052750566,20000]
["SOPRINTENDENZA ARCHEOLOGIA BELLE ARTI E PAESAGGIO PER L'AREA METROPOLITANA DI ROMA, LA PROVINCIA DI VITERBO, E L'ETRURIA MERIDIONALE  (RM)",8289.3745290128118,11000]
["SOPRINT. ARCHEOLOGIA BELLE ARTI E PAESAGGIO PER  LE PROVINCE DI FROSINONE, LATINA E RIETI",6782.2155237377547,9000]
["SOPRINT. ARCHEOLOGIA BELLE ARTI E PAESAGGIO PER  IL COMUNE DI ROMA",{"$f":"C52/1.327","v":6782.2155237377547},9000]
["ISTITUTO CENTRALE PER LA GRAFICA",3391.1077618688773,4500]
["POLO MUSEALE DEL LAZIO  (RM)",23360.964581763375,31000]
["IST. SUPER. PER LA CONSERVAZIONE E IL RESTAURO (RM)",6028.6360211002266,8000]
["MUSEO NAZIONALE ROMANO",12057.272042200453,16000]
["MUSEO NAZIONALE ETRUSCO DI VILLA GIULIA",5275.0565184626976,7000]
["PARCO ARCHEOLOGICO DELL'APPIA ANTICA",5275.0565184626976,7000]
["PARCO ARCHEOLOGICO DI OSTIA ANTICA",7535.7950263752828,10000]
["MUSEO DELLE CIVILTA'",8289.3745290128118,11000]
["VILLA ADRIANA E VILLA D'ESTE",9796.533534287868,13000]
["GALLERIA BORGHESE",5275.0565184626976,7000]
["GALLERIA NAZ.LE ARTE MOD. E CONTEMP. ",5275.0565184626976,7000]
["GALLERIE NAZ.LI ARTE ANTICA ",5275.0565184626976,7000]
[]
[]
["LIGURIA"]
["SOPRINT. ARCHEOLOGIA BELLE ARTI E PAESAGGIO PER LA CITTà METROPOLITANA DI GENOVA E LE PROVINCE DI IMPERIA, LA SPEZIA E SAVONA",2260.7385079125847,3000]
["POLO MUSEALE DELLA LIGURIA   (GE)",5275.0565184626976,7000]
["PALAZZO REALE DI GENOVA    (GE)",4521.4770158251695,6000]
[]
["LOMBARDIA"]
["SOPRINTENDENZA ARCHEOLOGIA BELLE ARTI E PAESAGGIO PER LA CITTà METROPOLITANA DI MILANO",2260.7385079125847,3000]
["SOPRINTENDENZA ARCHEOLOGIA BELLE ARTI E PAESAGGIO PER LE PROV. DI COMO,LECCO, MONZA-BRIANZA,PAVIA,SONDRIO E VARESE",2260.7385079125847,3000]
["SOPRINTENDENZA ARCHEOLOGIA BELLE ARTI E PAESAGGIO PER LE PROV: DI BERGAMO E  BRESCIA ",3014.3180105501133,4000]
["SOPRINTENDENZA ARCHEOLOGIA BELLE ARTI E PAESAGGIO PER LE PROV: DI CREMONA, LODI E MANTOVA ",null,3000]
["POLO MUSEALE DELLA LOMBARDIA  (MI)",6782.2155237377547,9000]
["PINACOTECA DI BRERA   (MI)",9042.9540316503389,12000]
["PALAZZO DUCALE DI MANTOVA  (MN)",7535.7950263752828,10000]
[]
[]
[]
[]
["MARCHE"]
["SOPRINTENDENZA ARCHEOLOGIA BELLE ARTI E PAESAGGIO DELLE MARCHE (AN)",{"$f":"C85/1.327","v":2260.7385079125847},3000]
["POLO MUSEALE DELLE MARCHE  (URBINO)",6028.6360211002266,8000]
["GALLERIA NAZIONALE DELLE MARCHE  (URBINO)",6028.6360211002266,8000]
[]
["MOLISE"]
["SOPRINTENDENZA ARCHEOLOGIA BELLE ARTI E PAESAGGIO  DEL MOLISE (CB)",3014.3180105501133,4000]
["POLO MUSEALE DEL MOLISE (CB)",5275.0565184626976,7000]
[]
["PIEMONTE"]
["SOPRINTENDENZA ARCHEOLOGIA BELLE ARTI E PAESAGGIO PER LA CITTà METROPOLITANA DI TORINO",2260.7385079125847,3000]
["SOPRINTENDENZA ARCHEOLOGIA BELLE ARTI E PAESAGGIO  PER LE PROV. DI ALESSANDRIA ASTI E CUNEO",2260.7385079125847,3000]
["SOPRINTENDENZA ARCHEOLOGIA BELLE ARTI E PAESAGGIO  PER LE PROV. DI BIELLA, NOVARA, VERBANO-CUSIO-OSSOLA E VERCELLI ",null,3000]
["POLO MUSEALE DEL PIEMONTE  (TO)",6782.2155237377547,9000]
["MUSEI REALI DI TORINO (TO)",9042.9540316503389,12000]
[]
[]
[]
["PUGLIA"]
["SOPRINTENDENZA ARCHEOLOGIA BELLE ARTI E PAESAGGIO PER LA CITTà METROPOLITANA DI BARI",2260.7385079125847,3000]
["SOPRINTENDENZA ARCHEOLOGIA BELLE ARTI E PAESAGGIO  PER LE PROV. DI BARLETTA-ANDRIA-TRANI E FOGGIA",2260.7385079125847,3000]
["SOPRINTENDENZA ARCHEOLOGIA BELLE ARTI E PAESAGGIO  PER LE PROV. DI BRINDISI, LECCE E TARANTO",2260.7385079125847,3000]
["POLO MUSEALE DELLA PUGLIA (BA)",11303.692539562924,15000]
["MUSEO ARCHEOLOGICO NAZIONALE DI TARANTO",5275.0565184626976,7000]
[]
["SARDEGNA"]
["SOPRINTENDENZA ARCHEOLOGIA BELLE ARTI E PAESAGGIO PER LA CITTà METROPOLITANA DI CAGLIARI E LE PROVINCE DI ORISTANO, MEDIO CAMPIDANO, CARBONIA-IGLESIAS E OGLIASTRA ",2260.7385079125847,3000]
["SOPRINTENDENZA ARCHEOLOGIA BELLE ARTI E PAESAGGIO PER LE PROV. DI SASSARI OLBIA-TEMPIO E NUORO (SS)",2260.7385079125847,3000]
["POLO MUSEALE DELLA SARDEGNA   (CA)",8289.3745290128118,11000]
[]
[]
["TOSCANA"]
["SOPRINTENDENZA ARCHEOLOGIA BELLE ARTI E PAESAGGIO PER LA CITTA' METROPOLITANA DI FIRENZE E  LE PROV. DI PISTOIA E PRATO (FI)",{"$f":"C116/1.327","v":2260.7385079125847},3000]
["SOPRINTENDENZA ARCHEOLOGIA BELLE ARTI E PAESAGGIO PER LE PROV. DI SIENA,GROSSETO  E AREZZO (SI)",{"$f":"C117/1.327","v":2260.7385079125847},3000]
["SOPRINTENDENZA ARCHEOLOGIA BELLE ARTI E PAESAGGIO PER LE PROV. DI  PISA E LIVORNO  (PI)",{"$f":"C118/1.327","v":2260.7385079125847},3000]
["POLO MUSEALE DELLA TOSCANA    (FI)",{"$f":"C119/1.327","v":16578.749058025624},22000]
["OPIFICIO DELLE PIETRE DURE DI FIRENZE  (FI)",3014.3180105501133,4000]
["GALLERIA DEGLI UFFIZI    (FI)",11303.692539562924,15000]
["GALLERIA DELL'ACCADEMIA DI FIRENZE (FI)",9042.9540316503389,12000]
["MUSEO NAZIONALE DEL BARGELLO  (FI)",6028.6360211002266,8000]
[]
[]
["UMBRIA"]
["SOPRINTENDENZA ARCHEOLOGIA BELLE ARTI E PAESAGGIO DELL'UMBRIA (PG)",2260.7385079125847,3000]
["POLO MUSEALE DELL'UMBRIA  (PG)",7535.7950263752828,10000]
["GALLERIA NAZIONALE DELL'UMBRIA   (PG)",4521.4770158251695,6000]
[]
["VENETO"]
["SOPRINTENDENZA ARCHEOLOGIA BELLE ARTI PER IL COMUNE DI VENEZIA E LAGUNA",2260.7385079125847,3000]
["SOPRINTENDENZA ARCHEOLOGIA BELLE ARTI E PAESAGGIO PER L'AREAMETROPOLITANA DI VENEZIA E PER LE PROV. DI BELLUNO, PADOVA E TREVISO",2260.7385079125847,3000]
["SOPRINTENDENZA ARCHEOLOGIA BELLE ARTI E PAESAGGIO PER LE PROV. DI VERONA, ROVIGO E VICENZA ",2260.7385079125847,3000]
["POLO MUSEALE DEL VENETO  (VE)",12057.272042200453,16000]
["GALLERIE DELL'ACCADEMIA DI VENEZIA",6028.6360211002266,8000]
[]
["TOTALE",null,{"$f":"SUM(C5:C137)","v":699000}]